fUST/lending_fUST_20240921
["ID","MTS","AMOUNT","RATE_DAILY","PERIOD"]
[338679634,1726867850777,-500.0,0.00015043,2]
[338679635,1726867850786,-500.0,0.00015043,2]
[338679636,1726867850796,-500.0,0.00015043,2]
[338679637,1726867850806,-500.0,0.00015043,2]
[338679638,1726867850817,-256.92930414,0.00015043,2]
[338679639,1726867850827,-469.56,0.00015043,2]
[338679640,1726867850838,-595.63781914,0.00015043,2]
[338679641,1726867850847,-624.75,0.00015043,2]
[338679642,1726867850857,-208.27,0.00015043,2]
[338679643,1726867850867,-500.0,0.00015043,2]
[338679644,1726867850877,-500.0,0.00015043,2]
[338679645,1726867850886,-500.0,0.00015043,2]
[338679646,1726867850896,-243.11,0.00015043,2]
[338679647,1726867850906,-500.0,0.00015043,2]
[338679648,1726867850916,-500.0,0.00015043,2]
[338679649,1726867850926,-500.0,0.00015043,2]
[338679650,1726867850936,-500.0,0.00015043,2]
[338679651,1726867850945,-500.0,0.00015043,2]
[338679652,1726867850957,-500.0,0.00015043,2]
[338679653,1726867850968,-500.0,0.00015043,2]
[338679654,1726867850978,-500.0,0.00015043,2]
[338679655,1726867850988,-500.0,0.00015043,2]
[338679656,1726867850997,-500.0,0.00015043,2]
[338679657,1726867851007,-500.0,0.00015043,2]
[338679658,1726867851016,-500.0,0.00015043,2]
[338679659,1726867851026,-500.0,0.00015043,2]
[338679660,1726867851037,-599.75,0.00015043,2]
[338679661,1726867851049,-500.0,0.00015043,2]
[338679662,1726867851058,-500.0,0.00015043,2]
[338679663,1726867851068,-500.0,0.00015043,2]
[338679664,1726867851079,-500.0,0.00015043,2]
[338679665,1726867851089,-535.73,0.00015043,2]
[338679666,1726867851101,-500.0,0.00015043,2]
[338679667,1726867851110,-500.0,0.00015043,2]
[338679668,1726867851121,-245.72,0.00015043,2]
[338679669,1726867851130,-500.0,0.00015043,2]
[338679670,1726867851139,-500.0,0.00015043,2]
[338679671,1726867851148,-500.0,0.00015043,2]
[338679672,1726867851157,-500.0,0.00015043,2]
[338679673,1726867851166,-500.0,0.00015043,2]
[338679674,1726867851176,-500.0,0.00015043,2]
[338679675,1726867851185,-500.0,0.00015043,2]
[338679676,1726867851194,-500.0,0.00015043,2]
[338679677,1726867851204,-205.88276228,0.00015043,2]
[338679678,1726867851213,-501.2014432,0.00015043,2]
[338679679,1726867851222,-500.0,0.00015043,2]
[338679680,1726867851232,-500.0,0.00015043,2]
[338679681,1726867851242,-280.73227265,0.00015043,2]
[338679682,1726867851251,-500.0,0.00015043,2]
[338679683,1726867851260,-500.0,0.00015043,2]
[338679684,1726867851270,-500.0,0.00015043,2]
[338679685,1726867851280,-585.51,0.00015043,2]
[338679686,1726867851290,-500.0,0.00015043,2]
[338679687,1726867851299,-500.0,0.00015043,2]
[338679688,1726867851310,-500.0,0.00015043,2]
[338679689,1726867851319,-500.0,0.00015043,2]
[338679690,1726867851328,-500.0,0.00015043,2]
[338679691,1726867851337,-500.0,0.00015043,2]
[338679692,1726867851346,-610.33,0.00015043,2]
[338679693,1726867851355,-500.0,0.00015043,2]
[338679694,1726867851364,-324.36611061,0.00015043,2]
[338679695,1726867851374,-500.0,0.00015043,2]
[338679696,1726867851383,-500.0,0.00015043,2]
[338679697,1726867851392,-204.3399437,0.00015043,2]
[338679698,1726867851402,-500.0,0.00015043,2]
[338679699,1726867851412,-500.0,0.00015043,2]
[338679700,1726867851421,-500.0,0.00015043,2]
[338679701,1726867851430,-151.0,0.00015043,2]
[338679702,1726867851439,-500.0,0.00015043,2]
[338679703,1726867851448,-500.0,0.00015043,2]
[338679704,1726867851458,-500.0,0.00015043,2]
[338679705,1726867851467,-500.0,0.00015043,2]
[338679706,1726867851476,-500.0,0.00015043,2]
[338679707,1726867851487,-521.5,0.00015043,2]
[338679708,1726867851498,-500.0,0.00015043,2]
[338679709,1726867851508,-558.65,0.00015043,2]
[338679710,1726867851518,-1327.21,0.00015043,2]
[338679711,1726867851527,-500.0,0.00015044,2]
[338679712,1726867851537,-500.0,0.00015044,2]
[338679713,1726867851547,-500.0,0.00015044,2]
[338679714,1726867851556,-268.26,0.00015044,2]
[338679715,1726867851566,-500.0,0.00015044,2]
[338679716,1726867851575,-500.0,0.00015063,2]
[338679717,1726867851584,-500.0,0.00015063,2]
[338679718,1726867851593,-500.0,0.00015063,2]
[338679719,1726867851603,-500.0,0.00015063,2]
[338679720,1726867851612,-500.0,0.00015063,2]
[338679721,1726867851622,-500.0,0.00015063,2]
[338679722,1726867851630,-500.0,0.00015063,2]
[338679723,1726867851640,-500.0,0.00015063,2]
[338679724,1726867851649,-500.0,0.00015063,2]
[338679725,1726867851659,-500.0,0.00015063,2]
[338679726,1726867851668,-500.0,0.00015063,2]
[338679727,1726867851677,-500.0,0.00015063,2]
[338679728,1726867851686,-500.0,0.00015063,2]
[338679729,1726867851695,-500.0,0.00015063,2]
[338679730,1726867851704,-500.0,0.00015063,2]
[338679731,1726867851714,-500.0,0.00015063,2]
[338679732,1726867851723,-500.0,0.00015063,2]
[338679733,1726867851732,-499.0,0.00015093,2]
[338679734,1726867851741,-230.43318643,0.00015093,2]
[338679735,1726867851751,-500.0,0.00015093,2]
[338679736,1726867851761,-500.0,0.00015093,2]
[338679737,1726867851770,-500.0,0.00015093,2]
[338679738,1726867851780,-500.0,0.00015093,2]
[338679739,1726867851789,-1324.61,0.00015297,2]
[338679740,1726867851799,-236.39,0.00015297,2]
[338679741,1726867851808,-797.16,0.00015297,2]
[338679742,1726867851817,-500.0,0.00015297,2]
[338679743,1726867851828,-500.0,0.00015297,2]
[338679744,1726867851839,-500.0,0.00015307,2]
[338679745,1726867851849,-500.0,0.00015307,2]
[338679746,1726867851859,-500.0,0.00015307,2]
[338679747,1726867851868,-19877.94,0.00015315,2]
[338679748,1726867851877,-500.0,0.00015315,2]
[338679749,1726867851886,-1813.78,0.00015315,2]
[338679750,1726867851895,-500.0,0.00015315,2]
[338679751,1726867851904,-500.0,0.00015315,2]
[338679752,1726867851914,-608.96,0.00015315,2]
[338679753,1726867851923,-500.0,0.00015315,2]
[338679754,1726867851931,-500.0,0.00015316,2]
[338679755,1726867851940,-500.0,0.00015316,2]
[338679756,1726867851950,-500.0,0.00015316,2]
[338679757,1726867851962,-631.33,0.00015316,2]
[338679758,1726867851970,-500.0,0.00015316,2]
[338679759,1726867851980,-500.0,0.00015316,2]
[338679760,1726867851989,-500.0,0.00015316,2]
[338679761,1726867851998,-500.0,0.00015316,2]
[338679762,1726867852010,-500.0,0.00015316,2]
[338679763,1726867852021,-500.0,0.00015316,2]
[338679764,1726867852031,-500.0,0.00015316,2]
[338679765,1726867852042,-500.0,0.00015316,2]
[338679766,1726867852053,-500.0,0.00015316,2]
[338679767,1726867852063,-500.0,0.00015316,2]
[338679768,1726867852075,-1011.09,0.00015316,2]
[338679769,1726867852087,-400.0,0.00015316,2]
[338679770,1726867852098,-500.0,0.00015316,2]
[338679771,1726867852110,-500.0,0.00015316,2]
[338679772,1726867852122,-500.0,0.00015316,2]
[338679773,1726867852133,-449.51298724,0.00015316,2]
[338679774,1726867852145,-500.0,0.00015316,2]
[338679775,1726867852154,-500.0,0.00015316,2]
[338679776,1726867852164,-500.0,0.00015316,2]
[338679777,1726867852173,-500.0,0.00015316,2]
[338679778,1726867852182,-500.0,0.00015316,2]
[338679779,1726867852191,-500.0,0.00015316,2]
[338679780,1726867852201,-500.0,0.00015316,2]
[338679781,1726867852211,-500.0,0.00015316,2]
[338679782,1726867852223,-500.0,0.00015316,2]
[338679783,1726867852268,-500.0,0.00015316,2]
[338679784,1726867852277,-500.0,0.00015316,2]
[338679785,1726867852286,-500.0,0.00015316,2]
[338679786,1726867852296,-500.0,0.00015316,2]
[338679787,1726867852305,-500.0,0.00015316,2]
[338679788,1726867852314,-500.0,0.00015316,2]
[338679789,1726867852323,-500.0,0.00015316,2]
[338679790,1726867852333,-500.0,0.00015316,2]
[338679791,1726867852344,-500.0,0.00015317,2]
[338679792,1726867852354,-507.54,0.00015317,2]
[338679793,1726867852363,-504.8,0.00015317,2]
[338679794,1726867852372,-500.0,0.00015317,2]
[338679795,1726867852381,-500.0,0.00015317,2]
[338679796,1726867852391,-500.0,0.00015317,2]
[338679797,1726867852400,-500.0,0.00015317,2]
[338679798,1726867852410,-500.0,0.00015317,2]
[338679799,1726867852419,-500.0,0.00015317,2]
[338679800,1726867852429,-500.0,0.00015317,2]
[338679801,1726867852439,-624.75,0.00015317,2]
[338679802,1726867852450,-500.0,0.00015317,2]
[338679803,1726867852459,-500.0,0.00015317,2]
[338679804,1726867852468,-500.0,0.00015317,2]
[338679805,1726867852476,-500.0,0.00015317,2]
[338679806,1726867852485,-400.26037637,0.00015317,2]
[338679807,1726867852495,-599.75,0.00015317,2]
[338679808,1726867852505,-500.0,0.00015317,2]
[338679809,1726867852516,-500.0,0.00015317,2]
[338679810,1726867852525,-1000.0,0.00015317,2]
[338679811,1726867852534,-1000.0,0.00015317,2]
[338679812,1726867852544,-1000.0,0.00015317,2]
[338679813,1726867852554,-1000.0,0.00015317,2]
[338679814,1726867852563,-801.52001154,0.00015317,2]
[338679815,1726867852572,-500.0,0.00015317,2]
[338679816,1726867852581,-500.0,0.00015317,2]
[338679817,1726867852591,-500.0,0.00015317,2]
[338679818,1726867852600,-500.0,0.00015317,2]
[338679819,1726867852611,-500.0,0.00015317,2]
[338679820,1726867852622,-500.0,0.00015317,2]
[338679821,1726867852632,-500.0,0.00015317,2]
[338679822,1726867852643,-500.0,0.00015317,2]
[338679823,1726867852654,-500.0,0.00015317,2]
[338679824,1726867852664,-500.0,0.00015317,2]
[338679825,1726867852674,-335.73,0.00015317,2]
[338679826,1726867852686,-347.85724891,0.00015317,2]
[338679827,1726867852695,-500.0,0.00015317,2]
[338679828,1726867852706,-500.0,0.00015317,2]
[338679829,1726867852716,-500.0,0.00015317,2]
[338679830,1726867852726,-500.0,0.00015317,2]
[338679831,1726867852738,-500.0,0.00015317,2]
[338679832,1726867852748,-500.0,0.00015317,2]
[338679833,1726867852757,-254.8404123,0.00015317,2]
[338679834,1726867852767,-500.0,0.00015317,2]
[338679835,1726867852776,-500.0,0.00015317,2]
[338679836,1726867852786,-500.0,0.00015317,2]
[338679837,1726867852796,-500.0,0.00015317,2]
[338679838,1726867852805,-523.27754454,0.00015317,2]
[338679839,1726867852815,-500.0,0.00015317,2]
[338679840,1726867852826,-500.0,0.00015317,2]
[338679841,1726867852837,-521.5,0.00015317,2]
[338679842,1726867852847,-500.0,0.00015317,2]
[338679843,1726867852856,-558.65,0.00015317,2]
[338679844,1726867852865,-1327.21,0.00015317,2]
[338679845,1726867852874,-500.0,0.00015318,2]
[338679846,1726867852884,-500.0,0.00015318,2]
[338679847,1726867852894,-500.0,0.00015318,2]
[338679848,1726867852903,-500.0,0.00015318,2]
[338679849,1726867852913,-151.0,0.0001532,2]
[338679850,1726867852923,-624.75,0.00015326,2]
[338679851,1726867852932,-624.75,0.00015326,2]
[338679852,1726867852942,-335.0115647,0.00015326,2]
[338679853,1726867852951,-599.75,0.00015326,2]
[338679854,1726867852964,-599.75,0.00015326,2]
[338679855,1726867852975,-500.0,0.00015326,2]
[338679856,1726867852985,-500.0,0.00015326,2]
[338679857,1726867852996,-151.0,0.00015336,2]
[338679858,1726867853007,-151.0,0.00015336,2]
[338679859,1726867853018,-151.0,0.00015336,2]
[338679860,1726867853028,-624.75,0.00015336,2]
[338679861,1726867853042,-599.75,0.00015336,2]
[338679862,1726867853054,-500.0,0.00015336,2]
[338679863,1726867853064,-500.0,0.00015337,2]
[338679864,1726867853073,-500.0,0.00015337,2]
[338679865,1726867853082,-500.0,0.00015337,2]
[338679866,1726867853093,-500.0,0.00015337,2]
[338679867,1726867853104,-500.0,0.00015337,2]
[338679868,1726867853115,-500.0,0.00015337,2]
[338679869,1726867853124,-500.0,0.00015337,2]
[338679870,1726867853133,-500.0,0.00015337,2]
[338679871,1726867853142,-425.4,0.00015337,2]
[338679872,1726867853150,-500.0,0.00015337,2]
[338679873,1726867853159,-500.0,0.00015337,2]
[338679874,1726867853168,-500.0,0.00015337,2]
[338679875,1726867853178,-1324.61,0.00015571,2]
[338679876,1726867853188,-797.16,0.00015571,2]
[338679877,1726867853200,-500.0,0.00015571,2]
[338679878,1726867853210,-500.0,0.00015571,2]
[338679879,1726867853219,-500.0,0.00015581,2]
[338679880,1726867853230,-500.0,0.00015581,2]
[338679881,1726867853241,-500.0,0.00015581,2]
[338679882,1726867853252,-19877.94,0.00015589,2]
[338679883,1726867853261,-500.0,0.00015589,2]
[338679884,1726867853270,-1813.78,0.00015589,2]
[338679885,1726867853280,-500.0,0.00015589,2]
[338679886,1726867853289,-500.0,0.00015589,2]
[338679887,1726867853299,-608.96,0.00015589,2]
[338679888,1726867853307,-1521.311035,0.00015589,2]
[338679889,1726867853316,-1521.311035,0.00015589,2]
[338679890,1726867853326,-348.570228,0.00015589,2]
[338679891,1726867853335,-348.570228,0.00015589,2]
[338679892,1726867853345,-151.0,0.00015589,2]
[338679893,1726867853356,-151.0,0.00015589,2]
[338679894,1726867853365,-362.425478,0.00015589,2]
[338679895,1726867853374,-500.0,0.00015589,2]
[338679896,1726867853383,-362.425478,0.00015589,2]
[338679897,1726867853391,-500.0,0.0001559,2]
[338679898,1726867853401,-500.0,0.0001559,2]
[338679899,1726867853410,-500.0,0.0001559,2]
[338679900,1726867853420,-500.0,0.0001559,2]
[338679901,1726867853431,-500.0,0.0001559,2]
[338679902,1726867853443,-500.0,0.0001559,2]
[338679903,1726867853452,-500.0,0.0001559,2]
[338679904,1726867853461,-418.57,0.0001559,2]
[338679905,1726867853470,-151.0,0.0001559,2]
[338679906,1726867853479,-500.0,0.0001559,2]
[338679907,1726867853488,-500.0,0.0001559,2]
[338679908,1726867853497,-500.0,0.0001559,2]
[338679909,1726867853507,-1002.992344,0.0001559,2]
[338679910,1726867853516,-1002.992344,0.0001559,2]
[338679911,1726867853526,-151.0,0.0001559,2]
[338679912,1726867853535,-151.0,0.0001559,2]
[338679913,1726867853545,-436.920315,0.0001559,2]
[338679914,1726867853554,-151.0,0.0001559,2]
[338679915,1726867853563,-436.920315,0.0001559,2]
[338679916,1726867853572,-1011.09,0.0001559,2]
[338679917,1726867853581,-500.0,0.0001559,2]
[338679918,1726867853591,-500.0,0.0001559,2]
[338679919,1726867853600,-500.0,0.0001559,2]
[338679920,1726867853610,-394.026933,0.0001559,2]
[338679921,1726867853619,-151.0,0.0001559,2]
[338679922,1726867853629,-500.0,0.0001559,2]
[338679923,1726867853638,-500.0,0.0001559,2]
[338679924,1726867853647,-394.026933,0.0001559,2]
[338679925,1726867853656,-500.0,0.0001559,2]
[338679926,1726867853665,-500.0,0.0001559,2]
[338679927,1726867853674,-500.0,0.0001559,2]
[338679928,1726867853684,-500.0,0.0001559,2]
[338679929,1726867853693,-427.47,0.0001559,2]
[338679930,1726867853703,-500.0,0.0001559,2]
[338679931,1726867853712,-500.0,0.0001559,2]
[338679932,1726867853721,-500.0,0.0001559,2]
[338679933,1726867853732,-500.0,0.0001559,2]
[338679934,1726867853742,-500.0,0.0001559,2]
[338679935,1726867853763,-500.0,0.0001559,2]
[338679936,1726867853773,-500.0,0.0001559,2]
[338679937,1726867853783,-500.0,0.0001559,2]
[338679938,1726867853792,-500.0,0.00015591,2]
[338679939,1726867853802,-500.0,0.00015591,2]
[338679940,1726867853812,-500.0,0.00015591,2]
[338679941,1726867853822,-500.0,0.00015591,2]
[338679942,1726867853831,-500.0,0.00015591,2]
[338679943,1726867853841,-213.02010329,0.00015591,2]
[338679944,1726867853850,-155.97252995,0.00015591,2]
[338679945,1726867853859,-458.23,0.00015591,2]
[338679946,1726867853869,-500.0,0.00015591,2]
[338679947,1726867853879,-500.0,0.00015591,2]
[338679948,1726867853888,-500.0,0.00015591,2]
[338679949,1726867853898,-500.0,0.00015591,2]
[338679950,1726867853908,-500.0,0.00015591,2]
[338679951,1726867853917,-500.0,0.00015591,2]
[338679952,1726867853927,-500.0,0.00015591,2]
[338679953,1726867853936,-500.0,0.00015591,2]
[338679954,1726867853946,-156.41,0.00015591,2]
[338679955,1726867853956,-500.0,0.00015591,2]
[338679956,1726867853967,-500.0,0.00015591,2]
[338679957,1726867853976,-500.0,0.00015591,2]
[338679958,1726867853985,-500.0,0.00015591,2]
[338679959,1726867854000,-500.0,0.00015591,2]
[338679960,1726867854011,-500.0,0.00015591,2]
[338679961,1726867854022,-500.0,0.00015591,2]
[338679962,1726867854035,-500.0,0.00015591,2]
[338679963,1726867854046,-500.0,0.00015591,2]
[338679964,1726867854055,-500.0,0.00015591,2]
[338679965,1726867854065,-500.0,0.00015591,2]
[338679966,1726867854075,-430.72399219,0.00015591,2]
[338679967,1726867854085,-521.5,0.00015591,2]
[338679968,1726867854094,-500.0,0.00015591,2]
[338679969,1726867854105,-558.65,0.00015591,2]
[338679970,1726867854117,-343.71,0.00015592,2]
[338679971,1726867854128,-500.0,0.00015592,2]
[338679972,1726867854138,-500.0,0.00015592,2]
[338679973,1726867854148,-151.0,0.000156,2]
[338679974,1726867854158,-517.969356,0.000156,2]
[338679975,1726867854168,-517.969356,0.000156,2]
[338679976,1726867854177,-265.932938,0.000156,2]
[338679977,1726867854187,-265.932938,0.000156,2]
[338679978,1726867854196,-500.0,0.00015611,2]
[338679979,1726867854205,-584.1,0.00015611,2]
[338679980,1726867854215,-577.09,0.00015611,2]
[338679981,1726867854225,-500.0,0.00015611,2]
[338679982,1726867854236,-500.0,0.00015611,2]
[338679983,1726867854247,-500.0,0.00015611,2]
[338679984,1726867854257,-472.59,0.00015611,2]
[338679985,1726867854268,-500.0,0.00015611,2]
[338679986,1726867854278,-500.0,0.00015611,2]
[338679987,1726867854289,-500.0,0.00015611,2]
[338679988,1726867854301,-7139.2745635,0.00015617,2]
[338679989,1726867854311,-595.516003,0.00015618,2]
[338679990,1726867854320,-595.516003,0.00015618,2]
[338679991,1726867854330,-310.773485,0.00015618,2]
[338679992,1726867854340,-310.773485,0.00015618,2]
[338679993,1726867854350,-150.0,0.00015647,2]
[338679994,1726867854359,-865.463611,0.0001577,2]
[338679995,1726867854369,-865.463611,0.0001577,2]
[338679996,1726867854378,-1324.61,0.00015845,2]
[338679997,1726867854388,-797.16,0.00015845,2]
[338679998,1726867854399,-500.0,0.00015845,2]
[338679999,1726867854411,-500.0,0.00015845,2]
[338680000,1726867854423,-420.0,0.00015849,2]
[338680001,1726867854434,-500.0,0.00015855,2]
[338680002,1726867854448,-500.0,0.00015855,2]
[338680003,1726867854458,-500.0,0.00015855,2]
[338680004,1726867854467,-19877.94,0.00015863,2]
[338680005,1726867854477,-500.0,0.00015863,2]
[338680006,1726867854486,-1813.78,0.00015863,2]
[338680007,1726867854495,-500.0,0.00015863,2]
[338680008,1726867854506,-500.0,0.00015863,2]
[338680009,1726867854518,-608.96,0.00015863,2]
[338680010,1726867854531,-500.0,0.00015863,2]
[338680011,1726867854542,-500.0,0.00015864,2]
[338680012,1726867854561,-500.0,0.00015864,2]
[338680013,1726867854570,-500.0,0.00015864,2]
[338680014,1726867854579,-500.0,0.00015864,2]
[338680015,1726867854589,-500.0,0.00015864,2]
[338680016,1726867854600,-500.0,0.00015864,2]
[338680017,1726867854609,-500.0,0.00015864,2]
[338680018,1726867854619,-1011.09,0.00015864,2]
[338680019,1726867854628,-500.0,0.00015864,2]
[338680020,1726867854638,-500.0,0.00015864,2]
[338680021,1726867854649,-500.0,0.00015864,2]
[338680022,1726867854659,-500.0,0.00015864,2]
[338680023,1726867854668,-500.0,0.00015864,2]
[338680024,1726867854678,-500.0,0.00015864,2]
[338680025,1726867854688,-500.0,0.00015864,2]
[338680026,1726867854697,-500.0,0.00015864,2]
[338680027,1726867854707,-500.0,0.00015864,2]
[338680028,1726867854717,-500.0,0.00015864,2]
[338680029,1726867854727,-500.0,0.00015864,2]
[338680030,1726867854737,-249.70408648,0.00015864,2]
[338680031,1726867854747,-500.0,0.00015864,2]
[338680032,1726867854756,-500.0,0.00015865,2]
[338680033,1726867854766,-500.0,0.00015865,2]
[338680034,1726867854776,-272.05621366,0.00015865,2]
[338680035,1726867854786,-374.11,0.00015865,2]
[338680036,1726867854798,-500.0,0.00015865,2]
[338680037,1726867854808,-624.75,0.00015865,2]
[338680038,1726867854818,-193.28,0.00015865,2]
[338680039,1726867854828,-500.0,0.00015865,2]
[338680040,1726867854838,-500.0,0.00015865,2]
[338680041,1726867854848,-599.75,0.00015865,2]
[338680042,1726867854857,-500.0,0.00015865,2]
[338680043,1726867854868,-500.0,0.00015865,2]
[338680044,1726867854877,-500.0,0.00015865,2]
[338680045,1726867854887,-500.0,0.00015865,2]
[338680046,1726867854896,-500.0,0.00015865,2]
[338680047,1726867854905,-324.47259531,0.00015865,2]
[338680048,1726867854915,-500.0,0.00015865,2]
[338680049,1726867854925,-500.0,0.00015865,2]
[338680050,1726867854935,-500.0,0.00015865,2]
[338680051,1726867854945,-500.0,0.00015865,2]
[338680052,1726867854955,-500.0,0.00015865,2]
[338680053,1726867854968,-500.0,0.00015865,2]
[338680054,1726867854978,-500.0,0.00015865,2]
[338680055,1726867854988,-521.5,0.00015865,2]
[338680056,1726867854998,-500.0,0.00015865,2]
[338680057,1726867855008,-558.65,0.00015865,2]
[338680058,1726867855019,-500.0,0.00015866,2]
[338680059,1726867855031,-500.0,0.00015866,2]
[338680060,1726867855043,-500.0,0.00015885,2]
[338680061,1726867855054,-397.93,0.00015885,2]
[338680062,1726867855064,-169.84,0.00015885,2]
[338680063,1726867855074,-500.0,0.00015885,2]
[338680064,1726867855084,-500.0,0.00015885,2]
[338680065,1726867855094,-500.0,0.00015885,2]
[338680066,1726867855104,-389.15,0.00015885,2]
[338680067,1726867855124,-624.75,0.00015887,2]
[338680068,1726867855138,-233.20722594,0.00015887,2]
[338680069,1726867855688,-500.0,0.00014475,2]
[338680070,1726867855879,-507.70425239,0.00014749,2]
[338680071,1726867855890,-151.0,0.00015043,2]
[338680072,1726867855899,-1327.21,0.00015591,2]
[338680073,1726867855909,-1327.21,0.00015865,2]
[338680074,1726867855918,-366.54277406,0.00015887,2]
[338680075,1726867855928,-500.0,0.00015887,2]
[338680076,1726867855938,-2800.0,0.00015888,2]
[338680077,1726867855947,-420.0,0.00015921,2]
[338680078,1726867855958,-1000.0,0.00015942,2]
[338680079,1726867855969,-1000.0,0.00015942,2]
[338680080,1726867855979,-1000.0,0.00015942,2]
[338680081,1726867855988,-1000.0,0.00015942,2]
[338680082,1726867855998,-1338.79434115,0.00015999,2]
[338680083,1726867856023,-188422.00319885,0.00015999,2]
[338680084,1726867856034,-6731.60718425,0.00016,2]
[338680085,1726867856045,-152.395519,0.00016,2]
[338680086,1726867856055,-152.395519,0.00016,2]
[338680087,1726867856064,-5000.0,0.00016,2]
[338680088,1726867856073,-5000.0,0.00016,2]
[338680089,1726867856082,-3615.322801,0.00016,2]
[338680090,1726867856091,-151.0,0.00016,2]
[338680091,1726867856100,-151.0,0.00016,2]
[338680092,1726867856109,-151.0,0.00016,2]
[338680093,1726867856118,-438.767728,0.00016,2]
[338680094,1726867856127,-438.767728,0.00016,2]
[338680095,1726867856137,-600.0,0.00016005,2]
[338680096,1726867856146,-1000.0,0.000161,2]
[338680097,1726867856155,-1324.61,0.00016119,2]
[338680098,1726867856165,-797.16,0.00016119,2]
[338680099,1726867856173,-500.0,0.00016119,2]
[338680100,1726867856183,-500.0,0.00016119,2]
[338680101,1726867856191,-624.75,0.00016129,2]
[338680102,1726867856201,-624.75,0.00016129,2]
[338680103,1726867856210,-599.75,0.00016129,2]
[338680104,1726867856219,-599.75,0.00016129,2]
[338680105,1726867856228,-500.0,0.00016129,2]
[338680106,1726867856238,-500.0,0.00016129,2]
[338680107,1726867856247,-614.9,0.00016129,2]
[338680108,1726867856257,-19877.94,0.00016137,2]
[338680109,1726867856266,-500.0,0.00016137,2]
[338680110,1726867856275,-1813.78,0.00016137,2]
[338680111,1726867856285,-500.0,0.00016137,2]
[338680112,1726867856295,-608.96,0.00016137,2]
[338680113,1726867856304,-151.0,0.00016137,2]
[338680114,1726867856313,-151.0,0.00016137,2]
[338680115,1726867856322,-500.0,0.00016138,2]
[338680116,1726867856334,-500.0,0.00016138,2]
[338680117,1726867856344,-500.0,0.00016138,2]
[338680118,1726867856355,-500.0,0.00016138,2]
[338680119,1726867856364,-500.0,0.00016138,2]
[338680120,1726867856373,-500.0,0.00016138,2]
[338680121,1726867856382,-500.0,0.00016138,2]
[338680122,1726867856392,-1011.09,0.00016138,2]
[338680123,1726867856401,-500.0,0.00016138,2]
[338680124,1726867856411,-500.0,0.00016138,2]
[338680125,1726867856420,-500.0,0.00016138,2]
[338680126,1726867856429,-500.0,0.00016138,2]
[338680127,1726867856439,-500.0,0.00016138,2]
[338680128,1726867856449,-500.0,0.00016138,2]
[338680129,1726867856459,-500.0,0.00016138,2]
[338680130,1726867856471,-500.0,0.00016138,2]
[338680131,1726867856482,-500.0,0.00016138,2]
[338680132,1726867856494,-500.0,0.00016138,2]
[338680133,1726867856504,-183.54,0.00016138,2]